bitfinex-derivatives/quotes_ETHF0:USTF0_20241207
["timestamp","ask_amount","ask_price","bid_price","bid_amount"]
[1733578629454,0.4004,3999.4,3999.1,6.26784805]
[1733578629663,0.4004,3999.4,3999.3,4.10397842]
[1733578629865,0.57522,3999.4,3999.3,4.10384074]
[1733578630260,0.57522,3999.4,3999.3,3.92902074]
[1733578630775,0.57522,3999.4,3999.3,0.17482]
[1733578630960,0.57522,3999.4,3999.3,4.10384074]
[1733578631366,0.17482,3999.4,3999.3,4.10384074]
[1733578631562,4.10764071,3999.6,3999.3,3.92902074]
[1733578631864,4.10764071,3999.6,3999.4,3.92902074]
[1733578632065,0.17482,3999.5,3999.4,3.92902074]
[1733578632261,0.17482,3999.5,3999.4,4.10384074]
[1733578632764,3.38262,3999.5,3999.4,4.10384074]
[1733578634264,3.38262,3999.5,3999.4,4.19604088]
[1733578634465,3.38262,3999.5,3999.4,4.02122088]
[1733578634770,3.38262,3999.5,3999.4,0.09220014]
[1733578635166,0.17482,3999.4,3999.3,4.10384074]
[1733578635359,0.17482,3999.4,3999.3,4.1960366]
[1733578635559,0.17482,3999.4,3999.3,0.26701586]
[1733578636465,3.2078,3999.5,3999.4,0.17482]
[1733578636765,3.2078,3999.5,3999.4,0.26701586]
[1733578636766,3.38262,3999.5,3999.4,0.26701586]
[1733578637359,3.38262,3999.5,3999.4,0.17482]
[1733578638568,3.38262,3999.5,3999.4,0.2670219]
[1733578640069,3.38262,3999.5,3999.4,0.0922019]
[1733578640665,7.30453741,3999.5,3999.4,0.0922019]
[1733578641267,7.30453741,3999.5,3999.4,0.2670219]
[1733578641471,3.38262,3999.5,3999.4,0.17482]
[1733578641876,0.17482,3999.5,3999.4,0.17482]
[1733578642172,4.10764071,3999.6,3999.1,45.10292074]
[1733578642379,4.10213368,3999.4,3999.3,0.17482]
[1733578642574,0.17483,3999.4,3999.3,0.17482]
[1733578643778,0.17483,3999.4,3999.3,10.69268502]
[1733578644572,0.55173,3999.4,3999.3,10.69268502]
[1733578645673,0.3769,3999.4,3999.3,10.69268502]
[1733578645878,0.55172,3999.4,3999.3,4.79873697]
[1733578646277,0.55172,3999.4,3999.3,4.79940781]
[1733578646583,0.55172,3999.4,3999.3,4.89162034]
[1733578647184,0.55172,3999.4,3999.3,4.79940781]
[1733578648379,3.49798841,3999.4,3999.3,4.79940781]
[1733578648683,3.49798841,3999.4,3999.3,10.70070252]
[1733578649484,3.49798841,3999.4,3999.3,10.61809184]
[1733578649781,3.49798841,3999.4,3999.3,10.61809555]
[1733578650382,0.55172,3999.4,3999.3,4.62581754]
[1733578650777,0.17482,3999.3,3999.2,5.90129471]
[1733578651078,4.02156752,3999.3,3999.2,10.61933633]
[1733578651484,1.07466071,3999.3,3999.2,4.71798751]
[1733578651683,1.07466071,3999.3,3999.2,4.62576899]
[1733578651880,1.07466071,3999.3,3999.2,3.93455698]
[1733578652380,0.17483,3999.2,3999.1,5.90129471]
[1733578652581,6.32847275,3999.2,3999.1,10.61906798]
[1733578652882,3.38263,3999.2,3999.1,10.79389798]
[1733578653082,3.12067275,3999.3,3999.2,0.17483]
[1733578653273,3.12067275,3999.3,3999.2,10.79370944]
[1733578653475,0.17483,3999.3,3999.2,10.79370944]
[1733578653677,3.12067275,3999.3,3999.2,10.61887944]
[1733578654191,0.3861,3999.3,3998.9,3.93441454]
[1733578654381,4.10764071,3999.0,3998.8,3.93441454]
[1733578654587,2.94393588,3998.9,3998.7,6.27580617]
[1733578654880,3.51257588,3998.9,3998.8,4.71696659]
[1733578655084,3.33773588,3998.9,3998.8,3.93303524]
[1733578655286,3.51257588,3998.9,3998.8,3.93303524]
[1733578655483,0.56864,3998.9,3998.8,3.93303524]
[1733578655679,0.56864,3998.9,3998.8,3.93294666]
[1733578655874,0.3938,3998.9,3998.7,6.27580617]
[1733578656080,0.3938,3998.9,3998.8,4.62390489]
[1733578656081,0.56864,3998.9,3998.8,4.62390489]
[1733578656277,3.51257588,3998.9,3998.8,3.9324226]
[1733578656481,3.33773588,3998.9,3998.7,3.9324226]
[1733578656682,3.11878588,3998.8,3998.7,3.9324226]
[1733578656881,0.17485,3998.8,3998.7,3.9324226]
[1733578657991,0.3938,3998.9,3998.6,5.90110617]
[1733578658194,0.17485,3998.8,3998.7,3.93168544]
[1733578658389,0.17485,3998.7,3998.6,6.07595617]
[1733578658693,3.11878588,3998.7,3998.6,0.26696873]
[1733578659193,0.17485,3998.7,3998.6,0.26696873]
[1733578659890,3.11878588,3998.7,3998.6,0.09211873]
[1733578660086,0.17485,3998.7,3998.6,0.09211873]
[1733578660896,0.17485,3998.7,3998.6,0.26696873]
[1733578661098,0.17485,3998.7,3998.6,0.09211873]
[1733578661294,0.17485,3998.6,3998.5,0.17486]
[1733578661502,0.17485,3998.6,3998.5,0.26695179]
[1733578663403,0.17485,3998.6,3998.5,0.09209179]
[1733578664406,0.17485,3998.6,3998.5,0.17486]
[1733578665909,0.17485,3998.6,3998.5,4.79951189]
[1733578667604,0.17485,3998.6,3998.5,10.70061806]
[1733578667805,0.17485,3998.6,3998.5,4.79951189]
[1733578668013,0.17485,3998.6,3998.5,10.70061806]
[1733578668311,0.17485,3998.6,3998.5,4.79951189]
[1733578669202,0.17485,3998.6,3998.5,10.70061806]
[1733578669402,0.17485,3998.6,3998.5,4.79951189]
[1733578671610,0.17485,3998.6,3998.5,4.19511515]
[1733578672319,0.17485,3998.6,3998.5,3.92816691]
[1733578673112,4.75964071,3998.8,3998.4,4.50152691]
[1733578673307,1.07470071,3998.5,3998.4,4.50152691]
[1733578673612,1.07470071,3998.5,3998.4,4.59363569]
[1733578673910,1.07470071,3998.5,3998.4,0.66546878]
[1733578680516,3.2078,3998.7,3998.6,0.17485]
[1733578680717,3.38265,3998.7,3998.6,0.26695878]
[1733578681016,3.38265,3998.7,3998.6,4.88962978]
[1733578681218,3.38265,3998.7,3998.6,4.88969127]
[1733578681409,3.38265,3998.7,3998.6,10.79079744]
[1733578681606,3.38265,3998.7,3998.6,4.88969127]
[1733578682016,3.38265,3998.7,3998.6,4.88989279]
[1733578683015,3.38265,3998.7,3998.6,4.19452653]
[1733578684214,3.38265,3998.7,3998.6,0.26702027]
[1733578684514,3.38265,3998.7,3998.6,4.10283239]
[1733578684718,3.38265,3998.7,3998.6,0.26708433]
[1733578684922,3.38265,3998.7,3998.6,4.89079106]
[1733578685810,3.38265,3998.7,3998.6,4.19545593]
[1733578686011,3.38265,3998.7,3998.6,4.19545936]
[1733578686217,3.38265,3998.7,3998.6,4.89144671]
[1733578687014,3.38265,3998.7,3998.6,0.26708433]
[1733578687214,3.38265,3998.7,3998.6,4.89175906]
[1733578687412,3.38265,3998.7,3998.6,4.19593565]
[1733578687622,3.38265,3998.7,3998.6,4.02108565]
[1733578687815,3.76165,3998.7,3998.6,3.92885132]
[1733578688125,3.76165,3998.7,3998.6,4.10370132]
[1733578688912,6.70558588,3998.7,3998.6,0.17485]
[1733578689313,6.53073588,3998.7,3998.4,0.3985]
[1733578689622,1.07470071,3998.5,3998.4,0.57336]
[1733578689828,0.17486,3998.6,3998.5,0.17485]
[1733578690026,0.17486,3998.6,3998.5,0.26709016]
[1733578690226,3.76165,3998.7,3998.6,0.17485]
[1733578690427,3.76165,3998.7,3998.6,0.26709016]
[1733578691126,3.38265,3998.7,3998.6,0.26709016]
[1733578691322,6.32658588,3998.7,3998.6,0.09224016]
[1733578691629,0.17486,3998.6,3998.5,0.17486]
[1733578691822,0.17486,3998.6,3998.5,0.26710263]
[1733578692519,0.57576,3998.6,3998.5,0.26710263]
[1733578693430,3.51969588,3998.6,3998.5,0.26710263]
[1733578695220,0.57576,3998.6,3998.5,0.26710263]
[1733578695427,3.52303442,3998.6,3998.5,0.26710263]
[1733578695623,3.52300429,3998.6,3998.5,0.26710263]
[1733578695822,0.57576,3998.6,3998.5,4.89635257]
[1733578696821,0.57576,3998.6,3998.5,4.72149257]
[1733578698028,3.52300478,3998.6,3998.5,10.53093888]
[1733578698932,0.57576,3998.6,3998.5,10.53307408]
[1733578699125,0.57576,3998.6,3998.5,4.63138514]
[1733578699126,3.52300478,3998.6,3998.5,4.63138514]
[1733578700028,6.73080478,3998.6,3998.5,4.63138514]
[1733578700326,3.78356,3998.6,3998.5,10.53462868]
[1733578700535,3.78356,3998.6,3998.5,4.63138514]
[1733578702329,6.73151145,3998.6,3998.5,10.53462868]
[1733578702629,6.73134716,3998.6,3998.5,10.53462868]
[1733578703533,6.73134716,3998.6,3998.5,4.63138514]
[1733578703736,0.17486,3998.5,3998.4,5.90324354]
[1733578703927,5.00011989,3998.5,3998.4,0.09222384]
[1733578704327,0.89984071,3998.5,3998.2,3.93473031]
[1733578704533,0.17487,3998.3,3998.2,3.93473031]
[1733578704732,0.17487,3998.3,3998.2,4.02695392]
[1733578705331,4.10479938,3998.3,3998.2,0.09222361]
[1733578706434,0.17487,3998.3,3998.2,0.09222361]
[1733578706824,4.10479938,3998.3,3998.2,0.09222361]
[1733578707030,1.55184071,3998.4,3998.0,3.93473031]
[1733578707031,0.17488,3998.1,3998.0,3.93473031]
[1733578707237,1.07472071,3998.1,3998.0,4.02693]
[1733578707438,1.07472071,3998.1,3998.0,0.09219969]
[1733578707639,1.48742071,3998.1,3998.0,0.09219969]
[1733578709235,0.17489,3997.9,3997.8,3.93473031]
[1733578709435,0.17489,3997.9,3997.8,4.02688436]
[1733578709635,0.17489,3997.9,3997.8,4.02688417]
[1733578711037,0.17489,3997.9,3997.8,10.61968096]
[1733578711641,0.17489,3997.9,3997.8,4.72091064]
[1733578711837,0.17489,3997.9,3997.8,10.61968096]
[1733578712545,0.17489,3997.9,3997.8,4.72091064]
[1733578712943,0.17489,3997.9,3997.8,4.62875678]
[1733578713444,0.17489,3997.8,3997.7,5.89877032]
[1733578713635,1.46273071,3997.8,3997.7,4.71973826]
[1733578714036,0.17489,3997.7,3997.6,4.31300237]
[1733578714447,0.17489,3997.7,3997.6,0.3819]
[1733578714647,0.17489,3997.7,3997.6,4.31300237]
[1733578715036,0.17489,3997.7,3997.6,0.3819]
[1733578718147,0.82689,3997.7,3997.6,0.3819]
[1733578724942,0.17489,3997.8,3997.7,0.17489]
[1733578725150,1.07473071,3997.8,3997.7,0.17489]
[1733578726241,0.17488,3998.0,3997.9,0.17488]
[1733578726552,0.17489,3997.9,3997.8,0.57939]
[1733578729351,0.17489,3997.9,3997.8,0.67147837]
[1733578729648,3.2078,3998.2,3998.1,0.17488]
[1733578730046,4.03466,3998.6,3998.5,0.17486]
[1733578731540,0.82686,3998.6,3998.5,0.17486]
[1733578732552,1.72670071,3998.6,3998.5,0.17486]
[1733578733755,0.82686,3998.6,3998.5,0.17486]
[1733578734048,0.17484,3998.9,3998.8,0.17484]
[1733578734453,1.07468071,3998.9,3998.8,0.17484]
[1733578734752,0.17485,3998.8,3998.7,0.17485]
[1733578735251,0.89984071,3998.9,3998.8,0.17485]
[1733578735252,1.07468071,3998.9,3998.8,0.17485]
[1733578735647,0.89984071,3998.9,3998.8,0.17485]
[1733578739656,0.89984071,3999.0,3998.6,0.3764]
[1733578739857,1.07468071,3999.0,3998.9,0.17484]
[1733578740158,0.89984071,3999.0,3998.9,0.17484]
[1733578740653,3.2078,3999.2,3999.0,0.17484]
[1733578740853,0.17483,3999.1,3999.0,0.17484]
[1733578742548,1.07467071,3999.1,3999.0,0.17484]
[1733578743648,3.2078,3999.2,3999.1,0.17483]
[1733578743852,4.10764071,3999.2,3998.7,0.3838]
[1733578744157,4.10764071,3999.2,3998.4,5.89877032]
[1733578744158,0.17486,3998.5,3998.4,4.10596237]
[1733578744451,0.89984071,3998.5,3998.2,0.3748]
[1733578744658,0.4093,3998.4,3998.3,0.17486]
[1733578745058,0.58416,3998.4,3998.3,0.17486]
[1733578746262,3.6171,3998.4,3997.8,3.93110237]
[1733578746452,3.6171,3998.4,3997.9,0.17488]
[1733578746453,0.17489,3998.0,3997.9,0.17488]
[1733578747061,0.17489,3997.9,3997.8,0.92349]
[1733578747357,0.58118,3998.0,3997.9,0.17489]
[1733578749659,0.4063,3998.0,3997.9,0.17489]
[1733578750061,0.58118,3998.0,3997.9,0.17489]
[1733578752058,0.17489,3997.9,3997.8,0.17489]
[1733578752663,0.4063,3998.0,3997.6,0.4028]
[1733578752865,0.56579,3997.8,3997.7,0.17489]
[1733578753057,0.1749,3997.7,3997.6,0.1749]
[1733578753962,1.46563071,3997.8,3997.7,0.17489]
[1733578754357,0.3909,3997.8,3997.7,0.17489]
[1733578754661,3.38268,3998.0,3997.9,0.17489]
[1733578754853,3.2078,3998.0,3997.9,0.17489]
[1733578755056,0.17487,3998.2,3998.0,0.17488]
[1733578755364,0.17487,3998.2,3998.1,0.94548]
[1733578756859,0.17487,3998.2,3998.1,0.7706]
[1733578757158,0.3813,3998.3,3997.7,3.93110237]
[1733578757364,0.17489,3997.9,3997.8,0.17489]
[1733578758165,0.17488,3998.0,3997.9,0.17488]
[1733578758665,0.58528,3998.0,3997.9,0.17488]
[1733578758866,0.4104,3998.0,3997.9,0.17488]
[1733578761365,0.58528,3998.0,3997.9,0.17488]
[1733578762466,0.17488,3998.0,3997.9,0.17488]
[1733578762664,3.38268,3998.1,3998.0,0.17488]
[1733578763770,1.07471071,3998.2,3998.1,0.17488]
[1733578764569,0.89984071,3998.2,3998.1,0.17488]
[1733578765075,1.07471071,3998.2,3998.1,0.17488]
[1733578765668,0.17485,3998.8,3998.4,0.17486]
[1733578765966,0.17485,3998.8,3998.7,0.17485]
[1733578767662,0.17485,3998.7,3998.6,0.17485]
[1733578769471,0.89984071,3998.9,3998.5,0.7863]
[1733578769671,1.07468071,3998.9,3998.8,0.17485]
[1733578769868,1.07468071,3998.9,3998.5,0.7863]
[1733578769869,3.35635818,3999.0,3998.5,0.7863]
[1733578770170,3.35635818,3999.0,3998.9,0.17484]
[1733578770171,3.53119818,3999.0,3998.9,0.17484]
[1733578771171,0.58504,3999.0,3998.9,0.17484]
[1733578772773,1.48488071,3999.0,3998.9,0.17484]
[1733578773771,0.17485,3998.8,3998.7,0.17485]
[1733578774278,0.17485,3998.7,3998.6,0.17485]
[1733578774571,1.07469071,3998.7,3998.6,0.17485]
[1733578774771,1.07469071,3998.7,3998.6,0.55755]
[1733578776676,1.07469071,3998.7,3998.6,0.3827]
[1733578777168,1.07469071,3998.7,3998.5,0.7863]
[1733578777169,0.89984071,3998.7,3998.5,0.57536]
[1733578777470,0.55375,3998.6,3998.5,0.57536]
[1733578779967,0.55375,3998.6,3998.5,0.4005]
[1733578780676,0.55375,3998.6,3998.5,0.57536]
[1733578783369,0.17486,3998.4,3998.3,0.3937]
[1733578783771,0.17486,3998.4,3998.3,0.56857]
[1733578784273,0.17486,3998.4,3998.3,0.3937]
[1733578784875,3.34445818,3998.5,3998.1,0.3876]
[1733578785179,0.17487,3998.3,3998.2,0.57167]
[1733578785871,0.17487,3998.3,3998.2,0.3968]
[1733578786067,0.17487,3998.2,3998.1,0.3876]
[1733578786269,0.17487,3998.2,3998.1,4.31870237]
[1733578786479,0.17487,3998.2,3998.1,0.3876]
[1733578786978,1.55084071,3998.4,3997.9,4.32790237]
[1733578787166,0.89984071,3998.1,3997.8,3.93110237]
[1733578787372,0.17489,3997.9,3997.8,3.93110237]
[1733578789080,0.17489,3997.9,3997.8,4.10599237]
[1733578789283,0.17488,3998.0,3997.9,0.17489]
[1733578789481,0.17488,3998.0,3997.9,4.10351144]
[1733578789686,0.17488,3998.0,3997.9,3.92862144]
[1733578790475,0.17488,3998.0,3997.9,4.10351144]
[1733578791278,0.17488,3998.0,3997.9,3.92862144]
[1733578791478,0.17488,3998.0,3997.9,4.02071048]
[1733578791783,0.17488,3998.0,3997.9,4.19560048]
[1733578792592,0.17488,3998.0,3997.9,4.02071048]
[1733578793385,0.17488,3998.0,3997.9,4.19560048]
[1733578794286,0.17488,3998.0,3997.9,4.10351144]
[1733578799400,2.94615818,3998.4,3997.9,4.92054178]
[1733578799699,0.17487,3998.4,3998.3,0.17486]
[1733578800011,0.17487,3998.3,3998.2,3.92862144]
[1733578800196,0.17488,3998.2,3998.1,0.17487]
[1733578800502,0.57478,3998.2,3998.1,0.17487]
[1733578800995,0.3999,3998.2,3998.1,0.17487]
[1733578801200,0.57477,3998.2,3998.1,0.17487]
[1733578801893,0.17487,3998.2,3998.1,0.17487]
[1733578802099,3.12102818,3998.3,3998.2,0.17487]
[1733578802298,2.94615818,3998.3,3997.8,3.92862144]
[1733578802494,0.17488,3998.1,3998.0,0.17488]
[1733578802699,0.17488,3998.1,3998.0,0.26696818]
[1733578802895,2.94615818,3998.3,3998.0,0.09208818]
[1733578803096,0.17487,3998.2,3998.1,0.17487]
[1733578804401,3.12102818,3998.3,3998.2,0.17487]
[1733578804596,3.12102818,3998.3,3997.8,3.92862144]
[1733578804597,2.94615818,3998.3,3997.8,3.92862144]
[1733578804807,0.17488,3998.1,3998.0,0.17488]
[1733578805304,0.55058,3998.1,3998.0,0.17488]
[1733578805599,0.55058,3998.1,3998.0,0.26698593]
[1733578805799,0.55058,3998.1,3998.0,0.17488]
[1733578806202,0.55058,3998.1,3998.0,0.26698038]
[1733578806592,0.55058,3998.1,3998.0,0.17488]
[1733578806797,0.3757,3998.1,3998.0,0.17488]
[1733578806998,0.17487,3998.2,3998.1,0.17488]
[1733578807199,3.12102818,3998.2,3998.1,0.17488]
[1733578807597,0.17487,3998.2,3998.1,0.17488]
[1733578808102,3.12102818,3998.2,3998.1,0.17488]
[1733578808497,0.17487,3998.2,3998.1,0.17488]
[1733578811807,0.4093,3998.3,3998.0,4.33592144]
[1733578812008,0.58417,3998.3,3998.2,0.17487]
[1733578813002,0.58417,3998.3,3998.2,0.94847]
[1733578814104,0.58417,3998.3,3998.2,0.7736]
[1733578814607,0.58417,3998.3,3998.2,0.86646504]
[1733578814804,0.58417,3998.3,3998.2,0.09286504]
[1733578815007,0.4093,3998.3,3998.0,3.92862144]
[1733578815203,0.17488,3998.1,3998.0,3.92862144]
[1733578815397,0.17488,3998.1,3998.0,0.0928839]
[1733578816205,0.18758798,3998.1,3998.0,0.0928839]
[1733578816406,0.20684935,3998.1,3998.0,0.0928839]
[1733578817218,0.20684935,3998.1,3997.9,0.17489]
[1733578817219,0.03196935,3998.1,3997.9,0.17489]
[1733578817398,0.17488,3998.1,3998.0,0.09291342]
[1733578817604,0.17488,3998.1,3998.0,0.06094407]
[1733578819511,4.10412379,3998.1,3998.0,0.06094407]
[1733578819808,0.89984071,3998.1,3997.5,0.1749]
[1733578820010,0.1749,3997.6,3997.5,0.1749]
[1733578820310,3.12287375,3997.6,3997.5,0.1749]
[1733578820515,3.32667375,3997.6,3997.4,0.3821]
[1733578820812,0.1749,3997.5,3997.4,0.55701]
[1733578821919,0.1749,3997.5,3997.4,0.3821]
[1733578822213,3.12287375,3997.5,3997.4,0.3821]
[1733578822415,3.12287375,3997.5,3997.4,0.55701]
[1733578822617,3.5865,3997.6,3997.5,0.1749]
[1733578822618,6.33067375,3997.6,3997.5,0.1749]
[1733578823615,3.3827,3997.6,3997.5,10.52941387]
[1733578823815,3.3827,3997.6,3997.5,4.63064355]
[1733578824116,0.1749,3997.5,3997.4,6.45578032]
[1733578824320,0.1749,3997.5,3997.4,11.08644983]
[1733578825718,0.1749,3997.5,3997.4,10.91153983]
[1733578826121,0.1749,3997.5,3997.4,5.01276951]
[1733578827123,0.1749,3997.5,3997.4,10.91153983]
[1733578827914,0.1749,3997.5,3997.4,5.01276951]
[1733578828609,0.5483,3997.5,3997.4,5.01276951]
[1733578829117,0.5483,3997.5,3997.4,10.91153983]
[1733578829619,0.5483,3997.5,3997.4,11.08644983]
[1733578830317,0.5483,3997.5,3997.4,10.91153983]
[1733578831317,0.5483,3997.5,3997.4,5.01276951]
[1733578831506,0.5483,3997.5,3997.4,0.3821]
[1733578831710,3.49627375,3997.5,3997.4,0.3821]
[1733578832512,0.5483,3997.5,3997.4,0.3821]
[1733578833012,0.5483,3997.5,3997.4,0.55701]
[1733578833713,0.1749,3997.5,3997.4,0.55701]
[1733578834418,0.1749,3997.5,3997.4,0.3821]
[1733578834810,0.5855,3997.5,3997.4,0.3821]
[1733578835817,0.5855,3997.5,3997.4,0.55701]
[1733578838619,0.5855,3997.5,3997.4,5.18572653]
[1733578839820,0.5855,3997.5,3997.4,5.01081653]
[1733578841124,0.5855,3997.5,3997.4,4.31184035]
[1733578841322,0.5855,3997.5,3997.4,3.92974035]
[1733578841513,1.48534071,3997.5,3997.4,3.92974035]
[1733578841824,1.31044071,3997.5,3997.3,4.33624035]
[1733578842023,0.17491,3997.4,3997.3,4.33624035]
[1733578842417,0.17491,3997.4,3997.3,4.51115035]
[1733578842723,0.58551,3997.5,3997.4,0.17491]
[1733578842921,0.58551,3997.5,3997.4,4.10465035]
[1733578842922,0.17491,3997.5,3997.4,4.10465035]
[1733578843712,3.2078,3997.6,3997.5,0.1749]
[1733578843914,3.3827,3997.6,3997.5,4.10398061]
[1733578846620,3.3827,3997.6,3997.5,0.1749]
[1733578846621,6.33067375,3997.6,3997.5,0.1749]
[1733578848032,3.2078,3997.6,3997.5,0.1749]
[1733578848218,3.3827,3997.6,3997.5,0.1749]
[1733578848419,3.2078,3997.6,3997.5,0.1749]
[1733578848619,3.3827,3997.6,3997.5,0.1749]
[1733578850219,3.3827,3997.6,3997.5,0.5545]
[1733578851920,3.3827,3997.6,3997.5,0.3796]
[1733578853631,3.3827,3997.6,3997.5,4.30868061]
[1733578853928,3.3827,3997.6,3997.5,3.92908061]
[1733578854125,3.2078,3997.6,3997.4,4.10399061]
[1733578854318,0.1749,3997.5,3997.4,4.10399061]
[1733578855125,3.3827,3997.6,3997.5,0.1749]
[1733578855729,3.3827,3997.6,3997.5,4.10398061]
[1733578856138,0.1749,3997.6,3997.5,4.10398061]
[1733578856636,0.1749,3997.6,3997.5,3.92908061]
[1733578858235,0.5576,3997.6,3997.5,3.92908061]
[1733578858429,3.33067375,3997.6,3997.4,3.92908061]
[1733578858634,0.1749,3997.5,3997.4,3.92908061]
[1733578859933,3.12287375,3997.5,3997.4,3.92908061]
[1733578861026,0.1749,3997.5,3997.4,3.92908061]
[1733578861230,3.12287375,3997.5,3997.4,3.93441961]
[1733578861429,0.1749,3997.5,3997.4,4.6586981]
[1733578861632,0.17491,3997.4,3997.3,5.89877032]
[1733578861831,0.57171,3997.4,3997.3,4.65871945]
[1733578862027,3.34477375,3997.4,3997.3,4.65935141]
[1733578862231,3.51968375,3997.4,3997.3,4.83426141]
[1733578862432,3.51968375,3997.4,3997.3,4.65935141]
[1733578864331,0.57171,3997.4,3997.3,10.55812173]
[1733578864731,0.97641,3997.4,3997.3,10.55874554]
[1733578864937,3.92438375,3997.4,3997.3,10.55874554]
[1733578865147,0.97641,3997.4,3997.3,4.65997522]
[1733578866031,0.8015,3997.4,3997.3,4.66093951]
[1733578866233,0.17491,3997.3,3997.2,5.89877032]
[1733578866438,3.12344865,3997.3,3997.2,10.5594484]
[1733578868938,0.17492,3997.2,3997.1,4.7086999]
[1733578870241,0.17492,3997.2,3997.1,0.7729]
[1733578870541,4.10555167,3997.2,3997.1,0.94782]
[1733578871339,0.16523286,3997.2,3997.1,4.8836199]
[1733578872141,0.16523286,3997.2,3997.1,4.7086999]
[1733578872340,0.16523286,3997.2,3997.1,4.8836199]
[1733578872539,0.16523286,3997.2,3997.1,0.94782]
[1733578872739,7.31335167,3997.3,3997.2,0.17492]
[1733578873840,3.38272,3997.3,3997.2,4.1107199]
[1733578874745,0.17492,3997.2,3997.1,4.8836199]
[1733578875044,0.54892,3997.2,3997.1,4.8836199]
[1733578875939,0.54892,3997.2,3997.1,5.58891879]
[1733578878545,0.374,3997.2,3997.1,5.58891879]
[1733578878845,3.2078,3997.3,3997.2,0.17492]
[1733578879045,3.38271,3997.3,3997.2,10.71862547]
[1733578879344,3.38271,3997.3,3997.2,4.81601879]
[1733578879935,0.17491,3997.4,3997.3,0.17491]
[1733578880141,0.5558,3997.6,3997.5,0.1749]
[1733578880339,0.1749,3997.7,3997.6,0.1749]
[1733578880538,0.1749,3997.7,3997.6,5.22939879]
[1733578880738,2.94867907,3997.8,3997.6,5.05449879]
[1733578880945,2.94867907,3998.1,3997.9,0.17489]
[1733578881147,2.94867907,3998.2,3998.1,0.17488]
[1733578881346,2.94867907,3998.2,3998.1,4.10782742]
[1733578881646,2.94867907,3998.3,3998.1,4.81327494]
[1733578881843,2.94867907,3998.3,3998.2,4.49897891]
[1733578882245,2.94867907,3998.3,3998.2,0.56627]
[1733578882549,2.94867907,3998.4,3998.3,0.17487]
[1733578882842,7.31329167,3998.6,3998.3,4.63599153]
[1733578882843,3.2078,3998.6,3998.3,4.63599153]
[1733578883041,2.94867907,3998.8,3998.7,0.17485]
[1733578883248,0.89984071,3998.9,3998.7,3.92965111]
[1733578883448,1.07468071,3998.9,3998.8,0.3914]
[1733578884850,0.89984071,3998.9,3998.8,0.3914]
[1733578885046,1.07468071,3998.9,3998.8,0.56625]
[1733578885243,0.89984071,3998.9,3998.8,0.56625]
[1733578886444,1.07468071,3998.9,3998.8,0.56625]
[1733578886749,1.07468071,3998.9,3998.8,0.3914]
[1733578887147,0.17485,3998.8,3998.7,0.17485]
[1733578887349,0.89984071,3998.9,3998.6,0.7916]
[1733578887350,0.17485,3998.7,3998.6,0.7916]
[1733578887647,0.89984071,3998.9,3998.6,0.7916]
[1733578887848,0.17485,3998.8,3998.7,0.17485]
[1733578888039,3.38265,3998.8,3998.7,0.17485]
[1733578888246,3.38265,3998.8,3998.6,0.7916]
[1733578888247,0.17485,3998.7,3998.6,0.7916]
[1733578888440,3.38265,3998.8,3998.2,44.72965111]
[1733578888643,3.38266,3998.4,3998.3,0.17487]
[1733578888843,0.17486,3998.5,3998.2,0.3848]
[1733578889050,0.3802,3998.3,3998.2,0.55967]
[1733578889448,0.55507,3998.3,3998.2,0.55967]
[1733578889751,0.3802,3998.3,3998.2,0.55967]
[1733578889940,0.17486,3998.5,3998.4,0.17486]
[1733578890144,0.89984071,3998.6,3998.2,0.3848]
[1733578890343,1.07470071,3998.6,3998.5,0.17486]
[1733578891045,0.17486,3998.5,3998.4,0.17486]
[1733578891239,0.17486,3998.5,3998.3,0.17486]
[1733578891444,3.84851978,3998.6,3998.3,0.17486]
[1733578891445,0.17486,3998.4,3998.3,0.17486]
[1733578892151,3.84851978,3998.6,3998.2,0.3848]
[1733578892348,0.17486,3998.5,3998.3,0.17486]
[1733578893052,0.17486,3998.5,3998.2,0.3848]
[1733578893365,0.17486,3998.5,3998.3,0.17486]
[1733578893648,0.89984071,3998.6,3998.3,0.17486]
[1733578893947,0.17486,3998.4,3998.3,0.17486]
[1733578894952,0.17486,3998.5,3998.2,0.55967]
[1733578895251,0.17487,3998.4,3998.3,0.17487]
[1733578895957,0.17486,3998.4,3998.3,0.17487]
[1733578896345,0.17486,3998.4,3998.2,0.3848]
[1733578896551,0.17487,3998.3,3998.2,0.3848]
[1733578896756,0.17487,3998.3,3998.2,0.55967]
[1733578896957,0.17487,3998.2,3998.1,0.55568]
[1733578897254,0.56497,3998.2,3998.1,0.55568]
[1733578898653,0.56497,3998.2,3998.1,0.3808]
[1733578899350,0.3901,3998.2,3997.9,0.89984071]
[1733578899556,0.17489,3997.9,3997.8,0.56529]
[1733578900059,0.17489,3997.9,3997.8,0.3904]
[1733578900749,0.17489,3997.9,3997.8,0.56529]
[1733578901353,0.17489,3997.9,3997.8,0.3904]
[1733578901555,0.3901,3998.2,3997.7,0.4057]
[1733578901856,0.17489,3997.8,3997.7,0.4057]
[1733578902960,0.17489,3997.8,3997.7,0.58059]
[1733578903155,0.3901,3998.2,3997.7,0.4057]
[1733578903352,0.17489,3997.9,3997.8,0.17489]
[1733578903559,0.17489,3997.8,3997.7,0.58059]
[1733578903752,0.17489,3998.0,3997.9,0.17488]
[1733578903953,0.3901,3998.2,3998.1,0.17488]
[1733578905258,3.38267,3998.4,3998.3,0.17487]
[1733578905448,3.2078,3998.4,3998.3,0.17487]
[1733578906055,3.2078,3998.4,3998.3,0.55527]
[1733578906262,3.38266,3998.4,3998.3,0.96837]
[1733578907558,3.38266,3998.4,3998.3,0.55527]
[1733578907763,3.2078,3998.4,3998.3,0.55527]
[1733578907959,3.2078,3998.8,3998.7,0.17485]
[1733578908560,3.2078,3998.8,3998.7,0.97665]
[1733578912470,3.38265,3998.8,3998.7,0.97665]
[1733578912765,3.2078,3998.8,3998.7,0.97665]
[1733578913261,3.38265,3998.8,3998.7,0.97665]
[1733578915161,3.2078,3998.8,3998.7,0.97665]
[1733578918875,3.38265,3998.8,3998.7,0.97665]
[1733578919264,3.38265,3998.8,3998.7,0.8018]